bitfinex/quotes_SOLUSD_20250517
["timestamp","ask_amount","ask_price","bid_price","bid_amount"]
[1747483771085,136.9,167.59,167.51,26.0]
[1747483771289,18.84,167.62,167.55,26.0]
[1747483771795,39.72066754,167.62,167.55,26.0]
[1747483773470,24.80597956,167.62,167.55,26.0]
[1747483773893,24.80597956,167.62,167.55,31.96834043]
[1747483774092,24.80597956,167.62,167.56,2.0]
[1747483774468,24.80597956,167.62,167.54,26.0]
[1747483775797,39.72066754,167.62,167.56,26.0]
[1747483776192,39.72066754,167.62,167.52,1.6257]
[1747483776499,39.72066754,167.62,167.54,26.0]
[1747483776702,136.9,167.61,167.54,26.0]
[1747483778367,157.78305489,167.6,167.49,5.9705057]
[1747483778568,136.9,167.59,167.52,26.0]
[1747483779798,5.9672992,167.58,167.5,33.97001999]
[1747483782083,136.9,167.59,167.54,26.0]
[1747483783105,142.86710578,167.59,167.54,26.0]
[1747483783402,142.86710578,167.59,167.51,31.96973778]
[1747483784710,136.9,167.59,167.51,31.96973778]
[1747483784876,136.9,167.59,167.52,18.64964886]
[1747483785596,136.9,167.59,167.53,2.0]
[1747483786781,136.9,167.59,167.54,31.96872388]
[1747483787876,136.9,167.59,167.54,26.0]
[1747483789011,142.86707331,167.59,167.54,26.0]
[1747483789372,142.86707331,167.59,167.51,5.96979284]
[1747483789776,142.86707331,167.59,167.52,26.0]
[1747483790505,142.86707331,167.59,167.53,31.96908016]
[1747483790711,136.9,167.59,167.53,31.96908016]
[1747483794204,142.86698387,167.59,167.53,31.96908016]
[1747483794516,142.86698387,167.59,167.52,26.0]
[1747483795620,157.7843417,167.59,167.53,26.0]
[1747483795799,157.7843417,167.59,167.53,28.0]
[1747483796007,183.3804,167.58,167.53,2.0]
[1747483796305,24.95084886,167.57,167.46,4.22877882]
[1747483796512,136.9,167.56,167.46,30.22877882]
[1747483797614,26.0,167.52,167.46,4.22877882]
[1747483797816,44.9,167.52,167.46,4.22877882]
[1747483798003,18.64964886,167.51,167.46,4.22877882]
[1747483798201,1.5232,167.5,167.41,4.22877882]
[1747483798514,6.0568,167.49,167.41,4.22877882]
[1747483799718,20.89801767,167.48,167.41,4.22877882]
[1747483800105,18.94,167.47,167.41,4.22877882]
[1747483800708,26.0,167.45,167.41,4.22877882]
[1747483801024,18.64964886,167.44,167.34,30.22877882]
[1747483801309,18.94,167.44,167.35,26.0]
[1747483801707,5.97264528,167.43,167.35,26.0]
[1747483802224,27.5232,167.41,167.34,4.22877882]
[1747483802392,24.9568,167.4,167.34,4.22877882]
[1747483803907,5.97407252,167.39,167.34,4.22877882]
[1747483804128,136.9,167.38,167.34,4.22877882]
[1747483804300,155.86,167.38,167.34,4.22877882]
[1747483804506,155.86,167.38,167.29,44.96]
[1747483804719,136.9,167.37,167.29,44.96]
[1747483804920,136.9,167.37,167.29,50.93748769]
[1747483805403,136.9,167.37,167.29,31.97748769]
[1747483805602,136.9,167.37,167.29,26.0]
[1747483805824,136.9,167.37,167.3,2.0]
[1747483806022,5.9751434,167.36,167.3,2.0]
[1747483806335,136.9,167.35,167.3,2.0]
[1747483806827,136.9,167.35,167.28,5.9779347]
[1747483807137,136.9,167.35,167.27,31.97832003]
[1747483808328,142.87585753,167.34,167.27,26.0]
[1747483808531,136.9,167.33,167.27,26.0]
[1747483809831,5.97657183,167.32,167.27,26.0]
[1747483810036,5.97657183,167.32,167.27,25.5]
[1747483810260,5.97657183,167.32,167.23,5.97943139]
[1747483810415,136.9,167.31,167.23,5.97943139]
[1747483810910,136.9,167.31,167.22,12.17530397]
[1747483811310,136.9,167.3,167.21,26.57222151]
[1747483811720,136.9,167.3,167.21,20.5918]
[1747483811921,5.97764361,167.29,167.21,52.57218917]
[1747483812145,142.87732406,167.3,167.21,52.57218917]
[1747483813151,142.87732406,167.3,167.21,27.6518]
[1747483813333,142.87732406,167.3,167.21,33.63217113]
[1747483813930,136.9,167.3,167.21,33.63217113]
[1747483814132,136.9,167.3,167.24,26.0]
[1747483815449,136.9,167.3,167.25,26.0]
[1747483816265,142.87733505,167.3,167.23,31.97955802]
[1747483816432,142.87733505,167.3,167.23,26.0]
[1747483817361,136.9,167.29,167.21,7.63225541]
[1747483818954,5.97800095,167.28,167.21,7.63225541]
[1747483819249,5.97800095,167.28,167.21,1.6518]
[1747483819554,20.92300334,167.28,167.21,26.0]
[1747483819733,39.88300334,167.28,167.21,26.0]
[1747483824644,5.97871577,167.26,167.21,26.0]
[1747483825040,5.97871577,167.26,167.19,7.08383527]
[1747483825251,5.97871577,167.26,167.19,33.08383527]
[1747483825867,136.9,167.27,167.19,33.08383527]
[1747483826075,136.9,167.27,167.2,18.64964886]
[1747483826241,136.9,167.27,167.23,26.0]
[1747483826952,136.9,167.27,167.23,31.97967592]
[1747483827661,18.98,167.3,167.23,31.97967592]
[1747483828044,18.98,167.3,167.23,50.93967592]
[1747483828248,24.95736137,167.3,167.23,50.93967592]
[1747483828765,18.98,167.3,167.23,50.93967592]
[1747483829070,142.87689069,167.32,167.23,50.93967592]
[1747483830655,142.87689069,167.32,167.24,1.6121]
[1747483831076,136.9,167.32,167.25,18.64964886]
[1747483831281,18.98,167.35,167.26,32.1714]
[1747483831588,18.41229028,167.37,167.31,18.64964886]
[1747483831767,5.97380593,167.4,167.31,18.64964886]
[1747483832288,5.97335881,167.41,167.33,26.0]
[1747483832468,142.87301014,167.42,167.35,26.0]
[1747483833185,168.87301014,167.42,167.32,1.6121]
[1747483833380,1.5872,167.4,167.29,45.02]
[1747483833562,136.9,167.39,167.29,45.02]
[1747483834156,5.97442944,167.38,167.29,50.99756048]
[1747483835172,5.97442944,167.38,167.29,31.97756048]
[1747483836394,5.97442944,167.38,167.3,1.0]
[1747483836685,136.9,167.37,167.3,6.97715149]
[1747483837796,142.87497147,167.37,167.3,6.97715149]
[1747483838588,136.9,167.37,167.3,6.97715149]
[1747483839480,142.87482628,167.37,167.3,1.0]
[1747483839672,136.9,167.36,167.3,6.97723578]
[1747483840571,1.5872,167.4,167.3,6.97723578]
[1747483840572,136.9,167.4,167.33,26.0]
[1747483840978,136.9,167.4,167.35,26.0]
[1747483841178,5.97238367,167.44,167.35,26.0]
[1747483841383,5.97238367,167.44,167.36,1.6121]
[1747483841787,24.99196436,167.45,167.36,1.6121]
[1747483841988,24.99196436,167.45,167.37,5.9747864]
[1747483842786,24.99196436,167.45,167.36,33.58715231]
[1747483843097,24.99196436,167.45,167.36,27.6121]
[1747483843282,24.99196436,167.45,167.37,26.0]
[1747483843496,24.99196436,167.45,167.35,5.97540613]
[1747483844304,24.99196436,167.45,167.36,27.0]
[1747483844498,39.92179415,167.45,167.37,26.0]
[1747483845605,39.92179415,167.45,167.36,1.0]
[1747483845899,136.9,167.44,167.36,1.0]
[1747483847505,5.97264528,167.43,167.36,1.0]
[1747483848087,20.90425849,167.43,167.36,1.0]
[1747483848289,136.9,167.42,167.34,26.0]
[1747483848490,136.9,167.41,167.32,1.6504]
[1747483848688,136.9,167.41,167.31,4.22877882]
[1747483848689,155.54964886,167.4,167.31,4.22877882]
[1747483848887,19.02,167.39,167.31,4.22877882]
[1747483849588,20.91050304,167.38,167.31,4.22877882]
[1747483851408,136.9,167.37,167.31,4.22877882]
[1747483851609,5.97550044,167.35,167.29,5.9776198]
[1747483852406,5.97550044,167.35,167.28,33.5372851]
[1747483853910,5.97550044,167.35,167.25,10.29567882]
[1747483854079,136.9,167.34,167.25,42.27461465]
[1747483854506,136.9,167.34,167.25,16.27461465]
[1747483854701,136.9,167.34,167.26,26.0]
[1747483855385,5.97621466,167.33,167.26,26.0]
[1747483858117,5.97621466,167.33,167.26,31.97857613]
[1747483858305,136.9,167.34,167.26,31.97857613]
[1747483858306,136.9,167.34,167.27,19.64964886]
[1747483858495,142.8759239,167.34,167.27,1.0]
[1747483859493,142.8759239,167.34,167.26,26.0]
[1747483859789,157.81556773,167.34,167.26,26.0]
[1747483859989,136.9,167.33,167.26,26.0]
[1747483860411,136.9,167.33,167.24,27.5158]
[1747483860613,155.92,167.32,167.24,26.0]
[1747483860809,174.92,167.32,167.24,26.0]
[1747483861711,5.97692905,167.31,167.24,26.0]
[1747483861892,136.9,167.3,167.24,26.0]
[1747483862818,136.9,167.3,167.24,31.97938881]
[1747483863522,5.97764361,167.29,167.24,31.97938881]
[1747483863898,136.9,167.3,167.24,31.97938881]
[1747483864102,136.9,167.36,167.28,27.5193]
[1747483864311,136.9,167.35,167.28,27.5193]
[1747483864514,136.9,167.35,167.29,6.0986]
[1747483865014,136.9,167.41,167.32,26.0]
[1747483865314,136.9,167.4,167.33,26.0]
[1747483865515,136.9,167.4,167.34,5.97585753]
[1747483867693,24.95265616,167.43,167.34,5.97585753]
[1747483867894,18.98,167.43,167.36,26.0]
[1747483868311,24.95265594,167.43,167.36,27.5193]
[1747483868937,24.95265594,167.43,167.33,5.97612493]
[1747483869222,155.54964886,167.42,167.31,4.22877882]
[1747483869521,20.90925383,167.39,167.31,4.22877882]
[1747483869707,19.02,167.38,167.31,4.22877882]
[1747483869897,155.88,167.37,167.31,4.22877882]
[1747483870795,136.9,167.37,167.31,10.20567952]
[1747483871024,136.9,167.37,167.32,27.0]
[1747483871618,136.9,167.37,167.33,5.97621466]
[1747483872323,142.87482872,167.37,167.32,1.0]
[1747483872522,136.9,167.37,167.32,1.0]
[1747483872841,136.9,167.37,167.32,6.97656883]
[1747483873596,136.9,167.43,167.35,26.0]
[1747483873828,136.9,167.44,167.37,26.0]
[1747483874024,142.87238369,167.44,167.37,26.0]
[1747483874222,136.9,167.44,167.37,26.0]
[1747483874417,136.9,167.44,167.38,18.64964886]
[1747483875723,136.9,167.44,167.37,46.5905]
[1747483876329,136.9,167.44,167.38,6.97435231]
[1747483876625,142.87231591,167.44,167.38,6.97435231]
[1747483876822,142.87231591,167.44,167.38,1.0]
[1747483877042,136.9,167.43,167.38,1.0]
[1747483877214,136.9,167.43,167.34,4.22877882]
[1747483877411,136.9,167.43,167.36,30.22877882]
[1747483877616,5.97300203,167.42,167.36,30.22877882]
[1747483878314,142.87274669,167.43,167.36,36.20384645]
[1747483878613,142.87274669,167.43,167.36,30.22877882]
[1747483879226,157.8043599,167.43,167.36,30.22877882]
[1747483879746,136.9,167.42,167.36,4.22877882]
[1747483879902,155.88,167.42,167.36,4.22877882]
[1747483880828,155.88,167.42,167.35,5.97548275]
[1747483881017,155.88,167.42,167.34,26.0]
[1747483881602,5.97335881,167.41,167.34,26.0]
[1747483882131,5.97335881,167.41,167.34,31.97574459]
[1747483882440,5.97335881,167.41,167.34,26.0]
[1747483883830,5.97335881,167.41,167.34,31.97577471]
[1747483884011,155.88,167.42,167.34,31.97577471]
[1747483884211,136.9,167.42,167.34,31.97577471]
[1747483885941,142.87301509,167.42,167.34,31.97577471]
[1747483888824,136.9,167.42,167.36,5.9751434]
[1747483889029,136.9,167.42,167.36,7.5513434]
[1747483890027,136.9,167.42,167.34,26.0]
[1747483890028,142.87313259,167.42,167.34,26.0]
[1747483890212,142.87313259,167.42,167.34,31.97578856]
[1747483891434,142.87304615,167.42,167.35,0.5]
[1747483892312,136.9,167.42,167.35,0.5]
[1747483892841,136.9,167.42,167.35,26.5]
[1747483893336,142.8731416,167.42,167.35,32.47535597]
[1747483893634,142.8731416,167.42,167.35,0.5]
[1747483894135,142.8731416,167.42,167.35,6.47538801]
[1747483894336,136.9,167.42,167.36,26.0]
[1747483896742,136.9,167.42,167.37,5.9747864]
[1747483897127,136.9,167.46,167.4,26.0]
[1747483897528,136.9,167.46,167.41,18.64964886]
[1747483898630,136.9,167.46,167.42,5.97300203]
[1747483898832,5.97059641,167.49,167.42,5.97300203]
[1747483899018,25.01027224,167.5,167.42,5.97300203]
[1747483899420,19.04,167.5,167.43,44.64964886]
[1747483900643,19.04,167.5,167.44,5.97228858]
[1747483900833,142.8698927,167.51,167.44,5.97228858]
[1747483901432,142.8698927,167.51,167.4,1.5924]
[1747483901760,142.8698927,167.51,167.44,26.0]
[1747483902443,142.8698927,167.51,167.42,26.0]
[1747483902444,157.79437482,167.51,167.42,26.0]
[1747483902630,5.9715753,167.46,167.39,4.22877882]
[1747483902949,136.9,167.45,167.39,4.22877882]
[1747483903749,136.9,167.45,167.37,31.97467484]
[1747483904454,5.97228858,167.44,167.37,31.97467484]
[1747483905271,136.9,167.45,167.37,31.97467484]
[1747483906959,142.8720412,167.45,167.37,31.97467484]
[1747483907546,136.9,167.45,167.37,31.97467484]
[1747483907748,136.9,167.45,167.38,18.64964886]
[1747483907950,142.87193955,167.45,167.38,18.64964886]
[1747483908549,142.87193955,167.45,167.38,19.14964886]
[1747483908946,136.9,167.45,167.38,19.14964886]
[1747483909139,136.9,167.45,167.39,5.97407252]
[1747483910042,136.9,167.45,167.4,26.0]
[1747483911859,136.9,167.45,167.41,31.97335881]
[1747483913755,155.94,167.51,167.45,26.0]
[1747483913950,143.3894,167.55,167.46,5.9715753]
[1747483914137,136.9,167.55,167.47,18.64964886]
[1747483914664,142.86849632,167.55,167.47,18.64964886]
[1747483915965,142.86849632,167.55,167.48,5.97086219]
[1747483916269,136.9,167.55,167.49,18.64964886]
[1747483917272,136.9,167.55,167.51,26.0]
[1747483918466,142.86838868,167.55,167.51,26.0]
[1747483918657,142.86838868,167.55,167.49,31.97030962]
[1747483920564,142.86838868,167.55,167.5,0.5]
[1747483921564,136.9,167.55,167.5,6.47000117]
[1747483921967,136.9,167.55,167.5,0.5]
[1747483921968,136.9,167.54,167.5,0.5]
[1747483922174,136.9,167.54,167.46,5.9713112]
[1747483922374,136.9,167.54,167.46,31.9713112]
[1747483922573,5.96943648,167.52,167.44,4.22877882]
[1747483922944,143.0183,167.51,167.44,4.22877882]
[1747483923148,143.0183,167.51,167.44,30.22877882]
[1747483924072,5.97014925,167.5,167.44,30.22877882]
[1747483924672,20.89552238,167.5,167.41,5.97334376]
[1747483925465,20.89552238,167.5,167.41,31.97334376]
[1747483925672,20.89552238,167.5,167.42,0.5]
[1747483925877,39.87552238,167.5,167.42,0.5]
[1747483926079,24.95014925,167.5,167.42,6.47299609]
[1747483926254,24.95014925,167.5,167.42,0.5]
[1747483926458,1.6295,167.49,167.42,0.5]
[1747483926680,136.9,167.48,167.42,0.5]
[1747483926979,136.9,167.48,167.39,26.0]
[1747483927177,1.6295,167.49,167.39,26.0]
[1747483927178,136.9,167.47,167.39,26.0]
[1747483927549,136.9,167.47,167.4,26.0]
[1747483928205,5.9715753,167.46,167.35,26.8759]
[1747483928367,136.9,167.45,167.33,18.64964886]
[1747483928684,18.98,167.44,167.36,26.0]
[1747483929162,18.98,167.44,167.37,18.64964886]
[1747483929367,136.9,167.45,167.4,26.0]
[1747483929705,5.97128838,167.47,167.41,26.0]
[1747483929981,157.5095,167.49,167.41,26.0]
[1747483930278,178.40635584,167.49,167.42,26.0]
[1747483930462,163.48009159,167.49,167.42,26.0]
[1747483930663,142.87059159,167.49,167.42,26.5]
[1747483931577,136.9,167.49,167.42,26.5]
[1747483931762,136.9,167.49,167.43,18.64964886]
[1747483931960,136.9,167.49,167.46,26.0]
[1747483932161,5.96952363,167.52,167.46,26.0]
[1747483932858,20.89311484,167.52,167.42,0.5]
[1747483933068,136.9,167.51,167.4,28.85207407]
[1747483933280,136.9,167.51,167.4,10.20242521]
[1747483933463,136.9,167.51,167.4,36.20242521]
[1747483934783,5.97014925,167.5,167.4,36.20242521]
[1747483934990,5.97014925,167.5,167.41,18.64964886]
[1747483935283,5.97014925,167.5,167.4,36.20242521]
[1747483935476,5.97014925,167.5,167.41,26.0]
[1747483936485,5.97014925,167.5,167.42,18.64964886]
[1747483936688,142.86990491,167.51,167.45,26.0]
[1747483936888,5.96872388,167.54,167.46,18.64964886]
[1747483937392,5.96847289,167.55,167.49,26.0]
[1747483938278,20.88939201,167.55,167.49,26.0]
[1747483939365,5.96847289,167.55,167.49,26.0]
[1747483941474,5.96847289,167.55,167.47,5.97113577]
[1747483941790,5.96847289,167.55,167.48,26.0]
[1747483942903,5.96847289,167.55,167.48,31.97079843]
[1747483943089,136.9,167.56,167.49,44.64964886]
[1747483943494,5.96658711,167.6,167.52,26.0]
[1747483943702,142.86631209,167.61,167.53,44.64964886]
[1747483943868,5.96611531,167.62,167.56,26.0]
[1747483944880,20.87736972,167.65,167.57,5.9676553]
[1747483945171,5.96480763,167.65,167.57,5.9676553]
[1747483945904,136.9,167.66,167.61,26.0]
[1747483946073,142.86446226,167.66,167.58,18.64964886]
[1747483946274,142.86446226,167.66,167.61,26.0]
[1747483946492,136.9,167.66,167.61,26.0]
[1747483947517,136.9,167.66,167.61,31.96606043]
[1747483948902,5.96231814,167.72,167.62,37.72964886]
[1747483949070,5.96231814,167.72,167.64,18.64964886]
[1747483950477,5.96231814,167.72,167.64,44.64964886]
[1747483951199,5.96231814,167.72,167.64,26.0]
[1747483952092,5.96231814,167.72,167.64,31.96496153]
[1747483952795,5.96231814,167.72,167.65,18.64964886]
[1747483953906,5.96231814,167.72,167.65,24.6141127]
[1747483954103,24.94199637,167.73,167.67,26.0]
[1747483954478,5.96199637,167.73,167.67,26.0]
[1747483955725,5.96199637,167.73,167.66,31.96410219]
[1747483956078,5.96199637,167.73,167.66,26.0]
[1747483956602,20.86690306,167.73,167.66,26.0]
[1747483957502,20.86690306,167.73,167.62,19.06]
[1747483957503,136.9,167.72,167.62,19.06]
[1747483957705,157.76935781,167.71,167.62,19.06]
[1747483957890,136.9,167.7,167.62,26.0]
[1747483958610,136.9,167.69,167.62,26.0]
[1747483959708,5.96374045,167.68,167.62,26.0]
[1747483960923,136.9,167.67,167.58,19.06]
[1747483961211,136.9,167.66,167.59,26.0]
[1747483961898,5.96480763,167.65,167.59,26.0]
[1747483964493,20.87682671,167.65,167.59,26.0]
[1747483965690,5.96480763,167.65,167.59,26.0]
[1747483970712,5.96480763,167.65,167.59,31.96692534]
[1747483970918,155.96,167.66,167.59,31.96692534]
[1747483971727,136.9,167.66,167.63,26.0]
[1747483971931,5.96350151,167.69,167.63,26.0]
[1747483972501,136.9,167.7,167.64,1.6483]
[1747483972704,136.9,167.7,167.65,5.96480763]
[1747483973224,142.86311569,167.7,167.65,5.96480763]
[1747483974330,142.86311569,167.7,167.64,33.61339695]
[1747483974833,142.86311569,167.7,167.64,26.0]
[1747483975199,136.9,167.7,167.64,31.96505384]
[1747483977322,136.9,167.7,167.65,18.64964886]
[1747483977715,5.96160724,167.74,167.65,18.64964886]
[1747483978622,5.96160724,167.74,167.67,18.64964886]
[1747483979230,5.96160724,167.74,167.66,24.98445186]
[1747483980426,136.9,167.75,167.68,5.96374045]
[1747483980620,136.9,167.75,167.69,18.64964886]
[1747483981221,5.96061657,167.77,167.69,18.64964886]
[1747483981524,136.9,167.79,167.74,26.0]
[1747483982028,142.85994525,167.79,167.74,26.0]
[1747483982528,142.85994525,167.79,167.72,24.9821998]
[1747483982734,142.85994525,167.79,167.73,26.0]
[1747483983425,157.7595221,167.79,167.71,6.4138]
[1747483983633,157.7595221,167.79,167.71,26.0]
[1747483984137,157.7595221,167.79,167.69,19.02]
[1747483984336,136.9,167.78,167.7,26.0]
[1747483984542,5.96054121,167.77,167.68,7.61063743]
[1747483984833,20.86189425,167.77,167.69,26.0]
[1747483985051,136.9,167.76,167.68,1.6469]
[1747483985208,136.9,167.76,167.67,6.3401]
[1747483985530,136.9,167.76,167.64,26.64302092]
[1747483985715,136.9,167.75,167.67,26.0]
[1747483985915,155.92,167.75,167.64,26.64302092]
[1747483986433,155.92,167.75,167.64,1.6582]
[1747483986612,20.86562536,167.74,167.66,26.0]
[1747483986811,136.9,167.73,167.66,26.0]
[1747483987745,136.9,167.73,167.63,29.21426105]
[1747483987746,136.9,167.72,167.63,4.22877882]
[1747483987938,136.9,167.71,167.63,4.22877882]
[1747483988115,6.5619,167.7,167.59,19.04]
[1747483988317,136.9,167.69,167.6,26.0]
[1747483988623,155.92,167.69,167.6,26.0]
[1747483988937,20.87309159,167.68,167.59,19.04]
[1747483989240,5.96374045,167.68,167.6,26.0]
[1747483990622,20.87309159,167.68,167.6,26.0]
[1747483992245,5.96374045,167.68,167.6,26.0]
[1747483993833,5.96374045,167.68,167.6,31.96653692]
[1747483998153,5.96374045,167.68,167.6,26.0]
[1747483998656,136.9,167.67,167.6,26.0]
[1747483998830,136.9,167.67,167.6,31.96655179]
[1747483999031,136.9,167.67,167.6,26.0]
[1747483999971,136.9,167.67,167.6,31.96657298]
[1747484000244,136.9,167.67,167.61,18.64964886]
[1747484000545,136.9,167.71,167.64,26.0]
[1747484000762,136.9,167.71,167.64,27.6167]
[1747484000949,142.86271115,167.71,167.64,27.6167]
[1747484002053,136.9,167.71,167.65,5.96480763]
[1747484002764,142.86270476,167.71,167.65,5.96480763]
[1747484003239,142.86270476,167.71,167.62,4.22877882]
[1747484003444,157.76938891,167.71,167.63,26.0]
[1747484004654,136.9,167.7,167.63,26.0]
[1747484005041,155.92,167.7,167.63,26.0]
[1747484006133,157.77184685,167.69,167.6,1.5399]
[1747484006434,136.9,167.68,167.6,7.50646599]
[1747484006643,136.9,167.68,167.6,1.5399]
[1747484006957,136.9,167.68,167.6,27.5399]
[1747484007543,136.9,167.68,167.6,33.50623602]
[1747484008262,5.96409614,167.67,167.6,33.50623602]
[1747484008453,142.86383979,167.68,167.6,33.50623602]
[1747484009349,142.86383979,167.68,167.6,26.0]
[1747484010557,5.96445186,167.66,167.6,26.0]
[1747484011454,5.96445186,167.66,167.6,31.96653003]
[1747484012460,142.86410586,167.67,167.6,31.96653003]
[1747484016279,142.86410586,167.67,167.57,35.47605906]
[1747484016449,157.77434621,167.67,167.57,16.8264102]
[1747484016647,157.77434621,167.67,167.58,26.0]
[1747484016972,155.88,167.66,167.57,4.22877882]
[1747484017275,26.0,167.6,167.55,4.22877882]
[1747484017566,157.5589,167.59,167.55,4.22877882]
[1747484017870,18.64964886,167.58,167.55,4.22877882]
[1747484018061,31.96801145,167.56,167.55,4.22877882]
[1747484018749,50.61766031,167.56,167.55,4.22877882]
[1747484019965,65.53768895,167.56,167.45,5.97182345]
[1747484020164,46.88804009,167.56,167.46,31.97141183]
[1747484020366,5.9672992,167.58,167.5,26.0]
[1747484021447,5.9672992,167.58,167.5,31.96983748]
[1747484022374,5.9672992,167.58,167.5,26.0]
[1747484023245,20.8855472,167.58,167.45,18.64964886]
[1747484023446,136.9,167.57,167.45,18.64964886]
[1747484023644,20.88804009,167.56,167.47,26.0]
[1747484024668,5.96801145,167.56,167.47,31.97115592]
[1747484024855,5.96801145,167.56,167.48,18.64964886]
[1747484025554,5.96801145,167.56,167.48,24.62027473]
[1747484025751,142.86772792,167.57,167.48,24.62027473]
[1747484025960,136.9,167.57,167.51,26.0]
[1747484026165,18.98,167.59,167.52,20.23394886]
[1747484026466,18.98,167.59,167.52,1.5843]
[1747484026764,24.94699263,167.59,167.53,26.0]
[1747484026968,24.94699263,167.59,167.52,1.5843]
[1747484027170,24.94699263,167.59,167.5,51.3603]
[1747484027870,39.86435046,167.59,167.5,51.3603]
[1747484028063,136.9,167.58,167.5,51.3603]
[1747484028260,136.9,167.58,167.49,26.0]
[1747484028464,136.9,167.57,167.48,1.5843]
[1747484028655,19.1,167.56,167.46,6.1437]
[1747484028855,136.9,167.55,167.46,38.11515482]
[1747484029064,136.9,167.55,167.47,18.64964886]
[1747484029463,136.9,167.55,167.49,26.0]
[1747484029653,136.9,167.55,167.47,26.0]
[1747484029851,142.86872388,167.54,167.47,26.0]
[1747484030266,157.79053359,167.54,167.47,26.0]
[1747484031289,157.79053359,167.54,167.43,26.59085694]
[1747484031455,136.9,167.53,167.43,1.5183]
[1747484031662,136.9,167.52,167.43,1.5183]
[1747484031864,136.9,167.51,167.43,1.5183]
[1747484032072,5.97014925,167.5,167.43,1.5183]
[1747484033783,20.89552238,167.5,167.43,1.5183]
[1747484033985,20.89552238,167.5,167.39,1.6318]
[1747484034280,136.9,167.49,167.39,7.60577507]
[1747484034663,136.9,167.49,167.39,1.6318]
[1747484034862,136.9,167.48,167.37,31.20117934]
[1747484035063,136.9,167.48,167.37,6.2465]
[1747484035383,136.9,167.48,167.37,32.2465]
[1747484035762,136.9,167.48,167.35,1.6318]
[1747484035763,22.44086553,167.47,167.35,1.6318]
[1747484035969,156.0,167.46,167.35,1.6318]
[1747484036177,18.98,167.45,167.36,26.0]
[1747484036374,18.98,167.45,167.35,1.6318]
[1747484036783,18.98,167.45,167.35,33.60719418]
[1747484037078,5.97228858,167.44,167.35,33.60719418]
[1747484039082,5.97228858,167.44,167.35,7.60719418]
[1747484039283,44.64964886,167.42,167.31,7.49999755]
[1747484039585,136.9,167.41,167.31,7.49999755]
[1747484040259,136.9,167.41,167.31,1.5231]
[1747484040467,19.12,167.4,167.31,1.5231]
[1747484040782,19.0,167.39,167.31,7.49997585]
[1747484040987,5.97442944,167.38,167.31,7.49997585]
[1747484041774,19.0,167.39,167.31,7.49997585]
[1747484042087,24.9741231,167.39,167.31,7.49997585]
[1747484042584,136.9,167.38,167.31,1.5231]
[1747484042983,5.9747864,167.37,167.31,1.5231]
[1747484043192,142.87446749,167.38,167.31,7.49996604]
[1747484043394,136.9,167.38,167.32,18.64964886]
[1747484043696,136.9,167.38,167.33,26.0]
[1747484044507,5.97238926,167.44,167.34,37.76964886]
[1747484044665,136.9,167.45,167.37,26.0]
[1747484044989,136.9,167.45,167.38,5.97442944]
[1747484045569,136.9,167.45,167.39,18.64964886]
[1747484045792,136.9,167.45,167.38,5.97442944]
[1747484046477,142.87200957,167.45,167.38,5.97442944]
[1747484046805,142.87200957,167.45,167.35,26.0]
[1747484047163,142.87200957,167.45,167.36,5.9751434]
[1747484050196,156.02,167.44,167.33,45.12]
[1747484050399,136.9,167.43,167.33,26.0]
[1747484050908,20.9055071,167.42,167.33,26.0]
[1747484052713,28.7790071,167.42,167.31,1.5231]
[1747484052882,28.7790071,167.42,167.31,27.5231]
[1747484053790,181.54964886,167.41,167.29,6.4913]
[1747484054103,18.64964886,167.39,167.27,5.97806898]
[1747484054272,19.1,167.38,167.28,26.0]